fUSD/lending_fUSD_20250101
["ID","MTS","AMOUNT","RATE_DAILY","PERIOD"]
[347410868,1735773047806,-1005.06,0.00010958,2]
[347410870,1735773047815,-546.53,0.00010958,2]
[347410872,1735773047824,-595.78,0.00010958,2]
[347410874,1735773047833,-1296.67,0.00010958,2]
[347410876,1735773047842,-500.0,0.00010958,2]
[347410878,1735773047851,-500.0,0.00010958,2]
[347410880,1735773047859,-445.377666,0.00010958,2]
[347410882,1735773047869,-1773.22,0.00010958,2]
[347410884,1735773047878,-539.55,0.00010958,2]
[347410886,1735773047887,-895.78,0.00010958,2]
[347410888,1735773047897,-3255.94,0.00010958,2]
[347410890,1735773047906,-1684.17,0.00010958,2]
[347410892,1735773047915,-928.72,0.00010958,2]
[347410894,1735773047926,-16578.39,0.00010958,2]
[347410896,1735773047935,-665.27,0.00010958,2]
[347410898,1735773047944,-500.0,0.00010958,2]
[347410900,1735773047953,-500.0,0.00010958,2]
[347410902,1735773047964,-1095.89,0.00010958,2]
[347410904,1735773047973,-1415.01,0.00010958,2]
[347410906,1735773047982,-1527.7,0.00010958,2]
[347410908,1735773047992,-1601.0,0.00010958,2]
[347410910,1735773048001,-500.0,0.00010958,2]
[347410912,1735773048011,-500.0,0.00010958,2]
[347410914,1735773048020,-1398.53,0.00010958,2]
[347410916,1735773048030,-1098.8,0.00010958,2]
[347410918,1735773048039,-1670.96,0.00010958,2]
[347410920,1735773048049,-500.0,0.00010958,2]
[347410922,1735773048059,-1435.94,0.00010958,2]
[347410924,1735773048068,-764.32,0.00010958,2]
[347410926,1735773048078,-500.0,0.00010958,2]
[347410928,1735773048087,-1434.2,0.00010958,2]
[347410930,1735773048097,-500.0,0.00010958,2]
[347410932,1735773048106,-582.12,0.00010958,2]
[347410934,1735773048116,-1247.99,0.00010958,2]
[347410936,1735773048125,-2620.56,0.00010958,2]
[347410938,1735773048135,-500.0,0.00010958,2]
[347410940,1735773048144,-4923.54,0.00010958,2]
[347410942,1735773048154,-500.0,0.00010958,2]
[347410944,1735773048163,-774.5,0.00010958,2]
[347410946,1735773048173,-500.0,0.00010958,2]
[347410948,1735773048182,-913.88,0.00010958,2]
[347410950,1735773048193,-650.83,0.00010958,2]
[347410952,1735773048204,-9390.38,0.00010958,2]
[347410954,1735773048215,-500.0,0.00010958,2]
[347410956,1735773048225,-10099.6,0.00010958,2]
[347410957,1735773048234,-500.0,0.00010958,2]
[347410959,1735773048244,-774.97,0.00010958,2]
[347410961,1735773048253,-822.45,0.00010958,2]
[347410963,1735773048262,-1539.49,0.00010958,2]
[347410965,1735773048272,-2900.97,0.00010958,2]
[347410967,1735773048282,-500.0,0.00010958,2]
[347410969,1735773048292,-766.16,0.00010958,2]
[347410971,1735773048302,-500.0,0.00010958,2]
[347410974,1735773048311,-1090.34,0.00010958,2]
[347410975,1735773048321,-1098.72,0.00010958,2]
[347410978,1735773048330,-500.0,0.00010958,2]
[347410980,1735773048339,-654.21,0.00010958,2]
[347410981,1735773048349,-1786.91,0.00010958,2]
[347410983,1735773048359,-528.32,0.00010958,2]
[347410986,1735773048368,-789.46,0.00010958,2]
[347410987,1735773048378,-886.56,0.00010958,2]
[347410989,1735773048387,-500.0,0.00010958,2]
[347410991,1735773048396,-500.0,0.00010958,2]
[347410993,1735773048405,-3229.4,0.00010958,2]
[347410995,1735773048414,-591.83,0.00010958,2]
[347410997,1735773048423,-551.39215493,0.00010958,2]
[347410999,1735773048432,-1006.61,0.00010958,2]
[347411001,1735773048441,-1448.7,0.00010958,2]
[347411003,1735773048450,-3603.02,0.00010958,2]
[347411005,1735773048460,-571.43,0.00010958,2]
[347411007,1735773048469,-2874.05,0.00010958,2]
[347411009,1735773048478,-500.0,0.00010958,2]
[347411011,1735773048487,-500.0,0.00010958,2]
[347411013,1735773048496,-911.62,0.00010958,2]
[347411015,1735773048506,-2295.03,0.00010958,2]
[347411017,1735773048515,-1372.74,0.00010958,2]
[347411019,1735773048524,-500.0,0.00010958,2]
[347411021,1735773048533,-500.0,0.00010958,2]
[347411023,1735773048543,-500.0,0.00010958,2]
[347411025,1735773048552,-500.0,0.00010958,2]
[347411027,1735773048561,-500.0,0.00010958,2]
[347411029,1735773048570,-2568.79,0.00010958,2]
[347411031,1735773048580,-885.06,0.00010958,2]
[347411033,1735773048589,-1089.36,0.00010958,2]
[347411035,1735773048598,-830.27,0.00010958,2]
[347411037,1735773048607,-2233.6,0.00010958,2]
[347411039,1735773048617,-1835.39,0.00010958,2]
[347411041,1735773048626,-500.0,0.00010958,2]
[347411043,1735773048635,-500.0,0.00010958,2]
[347411045,1735773048644,-592.26,0.00010958,2]
[347411047,1735773048653,-500.0,0.00010958,2]
[347411049,1735773048662,-1806.15,0.00010958,2]
[347411051,1735773048672,-3361.97,0.00010958,2]
[347411053,1735773048681,-1191.3,0.00010958,2]
[347411055,1735773048690,-500.0,0.00010958,2]
[347411057,1735773048699,-998.96,0.00010958,2]
[347411059,1735773048708,-500.0,0.00010958,2]
[347411061,1735773048719,-922.42,0.00010958,2]
[347411063,1735773048728,-500.0,0.00010958,2]
[347411066,1735773048741,-2920.02,0.00010958,2]
[347411068,1735773048750,-742.85,0.00010958,2]
[347411069,1735773048759,-3470.6,0.00010958,2]
[347411071,1735773048768,-1048.57,0.00010958,2]
[347411073,1735773048778,-3570.73,0.00010958,2]
[347411075,1735773048787,-778.65,0.00010958,2]
[347411077,1735773048796,-500.0,0.00010958,2]
[347411079,1735773048806,-500.0,0.00010958,2]
[347411081,1735773048815,-1505.49,0.00010958,2]
[347411083,1735773048824,-2030.19,0.00010958,2]
[347411085,1735773048834,-1033.5,0.00010958,2]
[347411087,1735773048843,-1140.18,0.00010958,2]
[347411089,1735773048852,-1336.44,0.00010958,2]
[347411091,1735773048861,-938.02,0.00010958,2]
[347411092,1735773048871,-4962.25,0.00010958,2]
[347411093,1735773048880,-3956.13,0.00010958,2]
[347411094,1735773048889,-164.84262995,0.00010958,2]
[347411095,1735773048898,-500.0,0.00010958,2]
[347411096,1735773048907,-500.0,0.00010958,2]
[347411097,1735773048916,-3586.08,0.00010958,2]
[347411098,1735773048925,-9671.63,0.00010958,2]
[347411099,1735773048934,-500.0,0.00010958,2]
[347411100,1735773048943,-984.59,0.00010958,2]
[347411101,1735773048952,-500.0,0.00010958,2]
[347411102,1735773048963,-874.5,0.00010958,2]
[347411104,1735773048972,-1448.66,0.00010958,2]
[347411106,1735773048981,-1593.94,0.00010958,2]
[347411108,1735773048991,-500.0,0.00010958,2]
[347411110,1735773049000,-500.0,0.00010958,2]
[347411112,1735773049009,-500.0,0.00010958,2]
[347411114,1735773049019,-2913.51,0.00010958,2]
[347411116,1735773049028,-1191.65,0.00010958,2]
[347411118,1735773049038,-1849.03,0.00010958,2]
[347411120,1735773049047,-500.0,0.00010958,2]
[347411122,1735773049056,-500.0,0.00010958,2]
[347411124,1735773049066,-500.0,0.00010958,2]
[347411126,1735773049075,-771.75,0.00010958,2]
[347411128,1735773049084,-812.51,0.00010958,2]
[347411130,1735773049095,-514.88649007,0.00010958,2]
[347411132,1735773049104,-6141.92,0.00010958,2]
[347411134,1735773049114,-4132.26,0.00010958,2]
[347411136,1735773049123,-500.0,0.00010958,2]
[347411138,1735773049132,-1709.83,0.00010958,2]
[347411140,1735773049141,-1099.32,0.00010958,2]
[347411142,1735773049150,-869.21,0.00010958,2]
[347411144,1735773049159,-3473.97,0.00010958,2]
[347411146,1735773049169,-809.67,0.00010958,2]
[347411148,1735773049178,-1216.78,0.00010958,2]
[347411150,1735773049187,-500.0,0.00010958,2]
[347411151,1735773049197,-2316.58,0.00010958,2]
[347411154,1735773049210,-9610.5,0.00010958,2]
[347411156,1735773049219,-1975.3,0.00010958,2]
[347411158,1735773049229,-729.07,0.00010958,2]
[347411159,1735773049239,-500.0,0.00010958,2]
[347411162,1735773049248,-5780.54,0.00010958,2]
[347411163,1735773049257,-1072.22,0.00010958,2]
[347411166,1735773049266,-1448.98,0.00010958,2]
[347411168,1735773049276,-872.0,0.00010958,2]
[347411170,1735773049286,-500.0,0.00010958,2]
[347411172,1735773049296,-577.73,0.00010958,2]
[347411174,1735773049305,-575.76,0.00010958,2]
[347411176,1735773049316,-1036.96,0.00010958,2]
[347411178,1735773049325,-975.05,0.00010958,2]
[347411180,1735773049334,-684.69,0.00010958,2]
[347411182,1735773049345,-800.85,0.00010958,2]
[347411184,1735773049356,-959.54,0.00010958,2]
[347411186,1735773049365,-512.17,0.00010958,2]
[347411188,1735773049375,-500.0,0.00010958,2]
[347411190,1735773049384,-3526.67,0.00010958,2]
[347411192,1735773049393,-1673.07,0.00010958,2]
[347411194,1735773049402,-7813.46,0.00010958,2]
[347411196,1735773049412,-841.6,0.00010958,2]
[347411198,1735773049421,-2585.16,0.00010958,2]
[347411200,1735773049430,-1035.33,0.00010958,2]
[347411202,1735773049440,-500.0,0.00010958,2]
[347411204,1735773049449,-599.27035103,0.00010958,2]
[347411206,1735773049458,-500.0,0.00010958,2]
[347411208,1735773049467,-6221.96,0.00010958,2]
[347411210,1735773049476,-500.0,0.00010958,2]
[347411212,1735773049486,-1387.75,0.00010958,2]
[347411214,1735773049495,-940.83,0.00010958,2]
[347411216,1735773049504,-624.4926893,0.00010958,2]
[347411218,1735773049513,-1373.58,0.00010958,2]
[347411220,1735773049522,-4554.56,0.00010958,2]
[347411222,1735773049531,-656.04,0.00010958,2]
[347411223,1735773049540,-579.45,0.00010958,2]
[347411225,1735773049549,-1750.98,0.00010958,2]
[347411226,1735773049559,-556.38,0.00010958,2]
[347411228,1735773049568,-500.0,0.00010958,2]
[347411230,1735773049577,-500.0,0.00010958,2]
[347411232,1735773049586,-10268.65,0.00010958,2]
[347411234,1735773049595,-3638.79,0.00010958,2]
[347411236,1735773049604,-500.0,0.00010958,2]
[347411238,1735773049613,-1118.43,0.00010958,2]
[347411240,1735773049622,-2004.5,0.00010958,2]
[347411242,1735773049631,-500.0,0.00010958,2]
[347411243,1735773049640,-515.3,0.00010958,2]
[347411245,1735773049649,-500.0,0.00010958,2]
[347411247,1735773049659,-596.87,0.00010958,2]
[347411249,1735773049668,-1345.91,0.00010958,2]
[347411251,1735773049676,-2037.84,0.00010958,2]
[347411253,1735773049686,-1536.55,0.00010958,2]
[347411255,1735773049695,-500.0,0.00010958,2]
[347411257,1735773049704,-1139.58,0.00010958,2]
[347411259,1735773049714,-500.0,0.00010958,2]
[347411261,1735773049724,-18271.53,0.00010958,2]
[347411263,1735773049734,-500.0,0.00010958,2]
[347411265,1735773049743,-1267.66,0.00010958,2]
[347411267,1735773049752,-500.0,0.00010958,2]
[347411269,1735773049765,-1000.69,0.00010958,2]
[347411271,1735773049775,-500.0,0.00010958,2]
[347411297,1735773050008,-150.0,0.00010959,2]
[347411299,1735773050019,-500.0,0.00010973,2]
[347411301,1735773050028,-400.0,0.00010986,2]
[347411303,1735773050038,-150.255,0.00010987,2]
[347411305,1735773050047,-566.0,0.00010988,2]
[347411307,1735773050056,-550.364596,0.00010994,2]
[347411309,1735773050066,-871.5426482,0.00010994,2]
[347411310,1735773050075,-1692.7704019,0.00010994,2]
[347411311,1735773050084,-5194.4533042,0.00010994,2]
[347411312,1735773050094,-150.0,0.00010999,2]
[347411313,1735773050103,-2000.0,0.00010999,2]
[347411314,1735773050112,-200.0,0.00010999,2]
[347411315,1735773050121,-857.12,0.00010999,2]
[347411316,1735773050138,-2747.65,0.00010999,2]
[347411317,1735773050147,-420.0,0.00010999,2]
[347411318,1735773050156,-7252.16,0.00010999,2]
[347411319,1735773050166,-758.0,0.00010999,2]
[347411320,1735773050175,-23783.12913579,0.00011,2]
[347411321,1735773050184,-641910.78822837,0.00011,2]
[347411323,1735773050217,-645.12,0.00011,2]
[347411325,1735773050235,-500.0,0.00010958,2]
[347411326,1735773050245,-3213.11158809,0.00011,2]
[347411327,1735773050256,-3700.04995,0.00011,2]
[347411328,1735773050267,-545.0599996,0.00011,2]
[347411329,1735773050279,-296.21242944,0.00011,2]
[347411330,1735773050296,-826.63609716,0.00011,2]
[347411331,1735773050307,-6057.23653866,0.00011,2]
[347411375,1735773050757,-506.07,0.0001,2]
[347411378,1735773050767,-841.99,0.00010958,2]
[347411379,1735773050777,-500.0,0.00010958,2]
[347411381,1735773050787,-2858.72037454,0.00011,2]
[347411384,1735773050798,-343.1944615,0.00011,2]
[347411387,1735773050816,-3024.48583906,0.00011,2]
[347411389,1735773050828,-11181.296364,0.00011,2]
[347411391,1735773050839,-49516.89251067,0.00011,2]
[347411393,1735773050850,-700997.79945251,0.00011,2]
[347411395,1735773050861,-1020.74140281,0.00011,2]
[347411397,1735773050879,-18566.55176146,0.00011,2]
[347411398,1735773050942,-5126.65330135,0.00011,2]
[347411399,1735773050953,-5773.08,0.00011,2]
[347411400,1735773050977,-682.62,0.00011,2]
[347411651,1735773173389,9158.19031486,9.647e-05,2]
[347411652,1735773478963,167.32,9.558e-05,2]
[347411653,1735773516110,23900.0,9.504e-05,2]
[347411654,1735773530564,-300.0,9.646e-05,2]
[347411655,1735773530586,-4649.0,9.647e-05,2]
[347411656,1735773572222,1500.0,9.5e-05,2]
[347411657,1735773601642,1731.36,9.513e-05,2]
[347411659,1735773763512,500.0,0.00023,120]
[347411660,1735773786540,201.02,9.481e-05,2]
[347411661,1735773816921,250.0,9.485e-05,2]
[347411662,1735773817677,948.17,8.219e-05,2]
[347411663,1735773866424,160.31,9.475e-05,2]
[347411664,1735773881651,3516.647901,0.00023,120]
[347411665,1735773896322,250.0,9.475e-05,2]
[347411667,1735773951638,413.78,9.441e-05,2]
[347411669,1735773990503,736.03,9.439e-05,2]
[347411670,1735773991591,655.07,9.456e-05,2]
[347411671,1735774018167,319717.65741157,0.00024732,30]
[347411672,1735774024847,500.0,9.46e-05,2]
[347411673,1735774107008,250.0,9.401e-05,2]
[347411696,1735774184057,1000.0,9.422e-05,2]
[347411700,1735774210324,1741.87,9.438e-05,2]
[347411701,1735774219829,151.010207,0.00023,120]
[347411702,1735774220947,151.010207,0.00023,120]
[347411703,1735774221928,151.010207,0.00023,120]
[347411711,1735774231948,-167.07,9.781e-05,2]
[347411712,1735774231958,-216.02438487,9.781e-05,2]
[347411713,1735774231967,-150.0,9.888e-05,2]
[347411714,1735774231977,-150.0,9.888e-05,2]
[347411715,1735774231987,-150.0,9.888e-05,2]
[347411716,1735774231996,-2200.0,0.0001,3]
[347411717,1735774232006,-505.92,0.0001,2]
[347411718,1735774232015,-504.76,0.0001,2]
[347411719,1735774232025,-216.02438486,0.00010025,2]
[347411720,1735774232035,-125.7363036,0.00010095,2]
[347411721,1735774232052,-185.5716964,0.00010095,2]
[347411723,1735774232062,-154.0523036,0.00010095,2]
[347411725,1735774232072,-111.3046964,0.00010095,2]
[347411727,1735774232082,-1040.24543175,0.00010095,2]
[347411729,1735774232092,-256.7011023,0.00010095,2]
[347411731,1735774232103,-278.06409137,0.00010095,2]
[347411734,1735774232136,-287.34591804,0.00010095,2]
[347411735,1735774232148,-1249.67505654,0.00010095,2]
[347411736,1735774232157,-4233.91415292,0.000101,3]
[347411737,1735774232208,-166.08584708,0.000101,3]
[347411738,1735774232217,-619.53546235,0.000101,2]
[347411739,1735774232227,-789.30453765,0.000101,2]
[347411740,1735774232237,-503.07,0.00010121,2]
[347411741,1735774232246,-1500.0,0.00010125,2]
[347411742,1735774232255,-1000.0,0.00010125,2]
[347411743,1735774232265,-150.99,0.00010125,2]
[347411744,1735774232274,-999.99,0.00010125,2]
[347411745,1735774232283,-499.99,0.00010125,2]
[347411746,1735774232291,-5090.26742491,0.00010125,2]
[347411747,1735774232302,-864.00000011,0.00010125,2]
[347411748,1735774232314,-281.28988996,0.00010125,2]
[347411749,1735774232326,-3764.43268502,0.00010125,2]
[347411750,1735774232337,-2335.56731498,0.00010125,2]
[347411751,1735774232347,-7450.07109377,0.00010125,2]
[347411752,1735774232374,-214.35159125,0.00010125,2]
[347411753,1735774232383,-716.63846749,0.00010125,2]
[347411755,1735774237426,-500.0,0.00010125,2]
[347411756,1735774237438,-500.0,0.00010125,2]
[347411757,1735774237581,-1218.2325649,0.00010125,2]
[347411758,1735774237592,-3293.00896761,0.00010125,2]
[347411759,1735774237601,-15287.79103239,0.00010125,2]
[347411760,1735774237637,-726.07958836,0.00010125,2]
[347411761,1735774237679,-250.49,0.00010125,2]
[347411762,1735774237690,-6441.65827,0.00010125,2]
[347411763,1735774237701,-1081.89339312,0.00010125,2]
[347411892,1735774239483,-877.5299894,0.00010125,2]
[347411893,1735774239495,-1100.817,0.00010125,2]
[347411895,1735774239506,-861.64145334,0.00010125,2]
[347411896,1735774239517,-16837.20927339,0.00010125,2]
[347411897,1735774239527,-392.47,0.00010125,2]
[347411898,1735774239536,-150.99,0.00010125,2]
[347411899,1735774239546,-299.99,0.00010125,2]
[347411900,1735774239555,-9999.99,0.00010125,2]
[347411901,1735774239564,-150.26,0.00010137,2]
[347411902,1735774239578,-492.14,0.0001017,2]
[347411903,1735774239587,-1580.83,0.0001017,2]
[347411904,1735774239595,-1000.0,0.00010194,2]
[347411905,1735774239605,-437.54,0.000102,2]
[347411906,1735774239614,-771.5,0.000102,2]
[347411907,1735774239624,-771.5,0.000102,2]
[347411908,1735774239633,-437.54,0.000102,2]
[347411909,1735774239643,-437.54,0.000102,2]
[347411910,1735774239653,-771.5,0.000102,2]
[347411911,1735774239663,-590.61,0.000102,2]
[347411912,1735774239673,-6600.0,0.000102,3]
[347411913,1735774239682,-501.43,0.00010217,2]
[347411914,1735774239692,-503.75,0.00010236,2]
[347411915,1735774239701,-503.92,0.00010269,2]
[347411916,1735774239710,-1858.14,0.000103,2]
[347411917,1735774239719,-8800.0,0.000103,3]
[347411918,1735774239728,-4066.4894,0.0001035,2]
[347411919,1735774239739,-200.0,0.00010385,2]
[347411920,1735774239748,-11000.0,0.000104,3]
[347411921,1735774239757,-500.0,0.00010411,2]
[347411922,1735774239766,-150.0,0.00010437,2]
[347411923,1735774239775,-948.17,0.00010449,2]
[347411924,1735774239784,-489.006,0.0001045,2]
[347411925,1735774239794,-2200.0,0.000105,3]
[347411926,1735774239804,-436.65,0.00010548,2]
[347411927,1735774239813,-300.0,0.00010548,2]
[347411928,1735774239823,-150.0,0.00010548,2]
[347411929,1735774239833,-150.0,0.00010548,2]
[347411930,1735774239844,-150.0,0.00010548,2]
[347411931,1735774239854,-182.79,0.00010548,2]
[347411932,1735774239863,-150.0,0.00010548,2]
[347411933,1735774239872,-150.0,0.00010548,2]
[347411934,1735774239881,-182.79,0.00010548,2]
[347411936,1735774239890,-182.79,0.00010548,2]
[347411938,1735774239900,-150.0,0.00010548,2]
[347411940,1735774239909,-182.79,0.00010548,2]
[347411941,1735774239918,-182.79,0.00010548,2]
[347411942,1735774239929,-182.79,0.00010548,2]
[347411943,1735774239938,-182.79,0.00010548,2]
[347411944,1735774239948,-182.79,0.00010548,2]
[347411945,1735774239956,-182.79,0.00010548,2]
[347411946,1735774239967,-182.79,0.00010548,2]
[347411947,1735774239976,-182.79,0.00010548,2]
[347411948,1735774239985,-182.79,0.00010548,2]
[347411949,1735774239994,-182.79,0.00010548,2]
[347411950,1735774240003,-95.02473384,0.00010548,2]
[347411951,1735774240015,-87.76526616,0.00010548,2]
[347411952,1735774240024,-182.79,0.00010548,2]
[347411953,1735774240033,-182.79,0.00010548,2]
[347411954,1735774240043,-182.79,0.00010548,2]
[347411955,1735774240052,-182.79,0.00010548,2]
[347411956,1735774240062,-181.74,0.00010548,2]
[347411957,1735774240072,-1000.0,0.000106,2]
[347411958,1735774240082,-2200.0,0.000106,3]
[347411959,1735774240091,-655.07,0.00010638,2]
[347411960,1735774240100,-2200.0,0.000107,3]
[347411961,1735774240110,-256.3085586,0.000107,2]
[347411962,1735774240119,-490.34,0.00010783,2]
[347411963,1735774240129,-2200.0,0.000108,3]
[347411964,1735774240141,-1172.0,0.00010832,2]
[347411965,1735774240152,-9605.0,0.00010832,2]
[347411966,1735774240163,-636.0,0.00010832,2]
[347411967,1735774240173,-100375.92505418,0.0001085,2]
[347411968,1735774240185,-59236.4999796,0.0001085,2]
[347411969,1735774240196,-2854.00122281,0.0001085,2]
[347411970,1735774240206,-440.1875,0.00010858,2]
[347411971,1735774240215,-226.4662,0.00010858,2]
[347411972,1735774240225,-1000.0,0.00010858,2]
[347411973,1735774240234,-5000.0,0.00010858,2]
[347411974,1735774240243,-2500.0,0.00010858,2]
[347411975,1735774240252,-2781.407,0.000109,2]
[347411976,1735774240261,-167.938,0.000109,2]
[347411977,1735774240271,-2336.0,0.000109,3]
[347411978,1735774240280,-1328.0,0.000109,2]
[347411979,1735774240289,-190.91180495,0.000109,2]
[347411980,1735774240298,-159.10097519,0.000109,2]
[347411981,1735774240307,-159.10097518,0.000109,2]
[347411982,1735774240317,-159.10097518,0.000109,2]
[347411983,1735774240326,-159.10097518,0.000109,2]
[347411984,1735774240335,-159.10097518,0.000109,2]
[347411985,1735774240344,-159.10097518,0.000109,2]
[347411986,1735774240353,-500.0,0.00010957,2]
[347411987,1735774240363,-526.27875631,0.00010957,2]
[347411988,1735774240373,-288.84790612,0.00010957,2]
[347411989,1735774240382,-500.0,0.00010957,2]
[347411990,1735774240391,-500.0,0.00010957,2]
[347411991,1735774240400,-500.0,0.00010957,2]
[347411992,1735774240409,-500.0,0.00010957,2]
[347411993,1735774240418,-500.0,0.00010957,2]
[347411994,1735774240426,-156.1234115,0.00010957,2]
[347411995,1735774240436,-500.0,0.00010957,2]
[347411996,1735774240445,-500.0,0.00010957,2]
[347411997,1735774240455,-500.0,0.00010957,2]
[347411998,1735774240464,-500.0,0.00010957,2]
[347411999,1735774240473,-500.0,0.00010957,2]
[347412000,1735774240482,-500.0,0.00010957,2]
[347412001,1735774240492,-500.0,0.00010957,2]
[347412002,1735774240501,-500.0,0.00010957,2]
[347412003,1735774240510,-341.30118411,0.00010957,2]
[347412004,1735774240519,-500.0,0.00010957,2]
[347412005,1735774240528,-500.0,0.00010957,2]
[347412006,1735774240537,-500.0,0.00010957,2]
[347412007,1735774240546,-500.0,0.00010957,2]
[347412008,1735774240555,-500.0,0.00010957,2]
[347412009,1735774240564,-500.0,0.00010958,2]
[347412010,1735774240575,-500.0,0.00010958,2]
[347412011,1735774240584,-500.0,0.00010958,2]
[347412012,1735774240592,-500.0,0.00010958,2]
[347412013,1735774240601,-500.0,0.00010958,2]
[347412014,1735774240610,-4364.79,0.00010958,2]
[347412015,1735774240621,-500.0,0.00010958,2]
[347412016,1735774240629,-1311.45,0.00010958,2]
[347412017,1735774240639,-508.4,0.00010958,2]
[347412018,1735774240648,-500.0,0.00010958,2]
[347412019,1735774240657,-500.0,0.00010958,2]
[347412020,1735774240666,-500.0,0.00010958,2]
[347412021,1735774240675,-500.0,0.00010958,2]
[347412022,1735774240684,-500.0,0.00010958,2]
[347412023,1735774240693,-378.46401928,0.00010958,2]
[347412024,1735774240702,-500.0,0.00010958,2]
[347412025,1735774240711,-500.0,0.00010958,2]
[347412026,1735774240720,-500.0,0.00010958,2]
[347412027,1735774240729,-683.9,0.00010958,2]
[347412028,1735774240738,-944.38,0.00010958,2]
[347412029,1735774240747,-500.0,0.00010958,2]
[347412030,1735774240756,-500.0,0.00010958,2]
[347412031,1735774240765,-500.0,0.00010958,2]
[347412032,1735774240775,-500.0,0.00010958,2]
[347412033,1735774240784,-593.04,0.00010958,2]
[347412034,1735774240793,-500.0,0.00010958,2]
[347412035,1735774240802,-500.04,0.00010958,2]
[347412036,1735774240811,-504.42,0.00010958,2]
[347412037,1735774240820,-500.0,0.00010958,2]
[347412038,1735774240830,-500.0,0.00010958,2]
[347412039,1735774240840,-2633.16,0.00010958,2]
[347412040,1735774240851,-500.0,0.00010958,2]
[347412041,1735774240862,-500.0,0.00010958,2]
[347412042,1735774240872,-500.0,0.00010958,2]
[347412043,1735774240880,-500.0,0.00010958,2]
[347412044,1735774240889,-1383.38,0.00010958,2]
[347412045,1735774240898,-500.0,0.00010958,2]
[347412046,1735774240907,-843.76,0.00010958,2]
[347412047,1735774240916,-500.0,0.00010958,2]
[347412048,1735774240925,-500.0,0.00010958,2]
[347412049,1735774240935,-500.0,0.00010958,2]
[347412050,1735774240944,-500.0,0.00010958,2]
[347412051,1735774240953,-500.0,0.00010958,2]
[347412052,1735774240964,-500.0,0.00010958,2]
[347412053,1735774240973,-500.0,0.00010958,2]
[347412054,1735774240982,-749.06,0.00010958,2]
[347412055,1735774240991,-500.0,0.00010958,2]
[347412056,1735774240999,-500.0,0.00010958,2]
[347412057,1735774241008,-500.0,0.00010958,2]
[347412058,1735774241017,-500.0,0.00010958,2]
[347412059,1735774241027,-535.15,0.00010958,2]
[347412060,1735774241037,-556.06,0.00010958,2]
[347412061,1735774241046,-500.0,0.00010958,2]
[347412062,1735774241057,-6949.98,0.00010958,2]
[347412063,1735774241067,-500.0,0.00010958,2]
[347412064,1735774241076,-500.0,0.00010958,2]
[347412065,1735774241085,-500.0,0.00010958,2]
[347412066,1735774241094,-500.0,0.00010958,2]
[347412067,1735774241103,-500.0,0.00010958,2]
[347412068,1735774241112,-500.0,0.00010958,2]
[347412069,1735774241123,-411.58474325,0.00010958,2]
[347412070,1735774241134,-500.0,0.00010958,2]
[347412071,1735774241145,-500.0,0.00010958,2]
[347412072,1735774241155,-500.0,0.00010958,2]
[347412073,1735774241164,-500.0,0.00010958,2]
[347412074,1735774241174,-500.0,0.00010958,2]